{"text_format":"1","workbook":"xlsx","n_sheets":10,"sheets":["Classement","FMJ1","FMJ2","FMJ3","FMJ4","FMJ5","Quart-Finale","Demi-Finale","Finale","Barrages"],"not_rendered":{"charts":0,"images":29,"macros":1,"external_links":0,"defined_names":0,"comments":0,"pivot_tables":0},"unopened":[],"bounds":{"document_bytes":16777216,"sheet_cells":100000,"rows_first":2000,"rows_last":500,"rows_between":2000,"halvings":0,"cell_chars":16384,"cell_head_chars":4096},"cells_cut":0,"cells_raw":0,"read":"whole","date_system":"1900"}

{"sheet":"Classement","index":0,"n_rows":43,"n_cols":31,"rows_kept":43,"cut":false,"hidden":false,"merged":[[13,18,13,19],[13,21,13,22],[16,18,16,19],[16,21,16,22],[19,18,19,19],[19,21,19,22],[13,13,13,14],[0,0,3,30],[5,24,5,30],[7,26,7,27],[7,29,7,30],[10,26,10,27],[10,29,10,30],[5,16,5,22],[7,18,7,19],[7,21,7,22],[10,18,10,19],[10,21,10,22],[8,21,8,22],[9,21,9,22],[5,0,5,6],[10,2,10,3],[10,5,10,6],[7,2,7,3],[7,5,7,6],[5,8,5,14],[7,10,7,11],[7,13,7,14],[16,2,16,3],[16,5,16,6],[19,2,19,3],[19,5,19,6],[8,5,8,6],[9,5,9,6],[11,5,11,6],[12,5,12,6],[14,5,14,6],[15,5,15,6],[17,5,17,6],[18,5,18,6],[13,2,13,3],[13,5,13,6],[20,5,20,6],[21,5,21,6],[8,13,8,14],[9,13,9,14],[11,13,11,14],[12,13,12,14],[14,13,14,14],[15,13,15,14],[17,13,17,14],[18,13,18,14],[20,13,20,14],[21,13,21,14],[10,10,10,11],[10,13,10,14],[16,10,16,11],[16,13,16,14],[19,10,19,11],[19,13,19,14],[13,10,13,11],[17,29,17,30],[18,29,18,30],[15,29,15,30],[20,21,20,22],[21,21,21,22],[20,29,20,30],[21,29,21,30],[19,29,19,30],[8,29,8,30],[9,29,9,30],[11,29,11,30],[12,29,12,30],[14,29,14,30],[13,29,13,30],[11,21,11,22],[12,21,12,22],[14,21,14,22],[15,21,15,22],[16,29,16,30],[16,26,16,27],[19,26,19,27],[13,26,13,27],[18,21,18,22],[17,21,17,22],[32,24,32,30],[34,26,34,27],[34,29,34,30],[35,29,35,30],[37,5,37,6],[38,5,38,6],[32,16,32,22],[34,18,34,19],[34,21,34,22],[35,21,35,22],[36,21,36,22],[32,0,32,6],[34,2,34,3],[34,5,34,6],[35,5,35,6],[36,5,36,6],[32,8,32,14],[34,10,34,11],[34,13,34,14],[35,13,35,14],[36,13,36,14]]}
["INTERCLUBS d'HIVER Messieurs - Saison 2024 / 2025"]
[]
[]
[]
[]
["POULE A - CENTRE EST",null,null,null,null,null,null,null,"POULE B - EST",null,null,null,null,null,null,null,"POULE C - CENTRE OUEST",null,null,null,null,null,null,null,"POULE D - OUEST"]
[]
["Journée 1",null,"Scores",null,null,"Play-off",null,null,"Journée 1",null,"Scores",null,null,"Play-off",null,null,"Journée 1",null,"Scores",null,null,"Play-off",null,null,"Journée 1",null,"Scores",null,null,"Play-off"]
["2024-11-10","ANGERS",48,12,"CHOLET",null,null,null,"2024-11-10","LAVAL",14,36,"SARGE",null,null,null,"2024-11-10","St SEBASTIEN",36,20,"St JEAN de MONTS",null,null,null,"2024-11-10","NANTES Erdre",36,17,"OLONNES"]
["2024-11-10","ILE D'OR",43,15,"ANGERS PERRIERE",null,null,null,"2024-11-10","Le MANS 24H",49,13,"ANJOU",null,null,null,"2024-11-10","GUERANDE",36,20,"La BAULE",null,null,null,"2024-11-10","NANTES Vigneux",35,18,"PAYS de St GILLES"]
["Journée 2",null,null,null,null,"Play-off",null,null,"Journée 2",null,null,null,null,"Play-off",null,null,"Journée 2",null,null,null,null,"Play-off",null,null,"Journée 2",null,null,null,null,"Play-off"]
["2024-11-24","ANGERS PERRIERE",21,40,"ANGERS",null,null,null,"2024-11-24","Le MANS 24H",30,19,"SARGE",null,null,null,"2024-11-24","La BAULE",31,27,"St SEBASTIEN",null,null,null,"2024-11-24","PAYS de St GILLES",21,29,"NANTES Erdre"]
["2024-11-24","CHOLET",25,26,"BAUGE",null,null,null,"2024-11-24","ANJOU",25,27,"ALENCON",null,null,null,"2024-11-24","PORNIC",18,30,"GUERANDE",null,null,null,"2024-11-24","NANTES Vigneux",34,20,"BOURGENAY"]
["Journée 3",null,null,null,null,"Play-off",null,null,"Journée 3",null,null,null,null,"Play-off",null,null,"Journée 3",null,null,null,null,"Play-off",null,null,"Journée 3",null,null,null,null,"Play-off"]
["2024-12-08","BAUGE",29,28,"ILE D'OR",null,null,null,"2024-12-08","ANJOU",25,25,"LAVAL","ANJOU",null,null,"2024-12-08","St JEAN de MONTS",24,36,"GUERANDE",null,null,null,"2024-12-08","OLONNES",23,37,"BOURGENAY"]
["2024-12-08","CHOLET",16,26,"ANGERS PERRIERE",null,null,null,"2024-12-08","Le MANS 24H",26,33,"ALENCON",null,null,null,"2024-12-08","PORNIC",25,28,"La BAULE",null,null,null,"2024-12-08","NANTES Erdre",30,15,"NANTES Vigneux"]
["Journée 4",null,null,null,null,"Play-off",null,null,"Journée 4",null,null,null,null,"Play-off",null,null,"Journée 4",null,null,null,null,"Play-off",null,null,"Journée 4",null,null,null,null,"Play-off"]
["2025-01-12","ANGERS PERRIERE",null,null,"BAUGE","REPORTE",null,null,"2025-01-12","ALENCON",35,25,"LAVAL",null,null,null,"2025-01-12","La BAULE",38,15,"St JEAN de MONTS",null,null,null,"2025-01-12","OLONNES",null,null,"NANTES Vigneux","REPORTE"]
["2025-01-12","ANGERS",null,null,"ILE D'OR","REPORTE ",null,null,"2025-01-12","SARGE",null,null,"ANJOU","REPORTE",null,null,"2025-01-12","St SEBASTIEN",17,25,"PORNIC",null,null,null,"2025-01-12","BOURGENAY",null,null,"PAYS de St GILLES","REPORTE"]
["Journée 5",null,null,null,null,"Play-off",null,null,"Journée 5",null,null,null,null,"Play-off",null,null,"Journée 5",null,null,null,null,"Play-off",null,null,"Journée 5",null,null,null,null,"Play-off"]
["2025-01-19","BAUGE",null,null,"ANGERS",null,null,null,"2025-01-19","LAVAL",null,null,"LE MANS 24H",null,null,null,"2025-01-19","St JEAN de MONTS",null,null,"PORNIC",null,null,null,"2025-01-19","PAYS de St GILLES",null,null,"OLONNES"]
["2025-01-19","ILE D'OR",null,null,"CHOLET",null,null,null,"2025-01-19","SARGE",null,null,"ALENCON",null,null,null,"2025-01-19","GUERANDE",null,null,"St SEBASTIEN",null,null,null,"2025-01-19","BOURGENAY",null,null,"NANTES Erdre"]
[]
["Classement POULE A",null,"Pts","Tg","Mj","Tp","Dt",null,"Classement POULE B",null,"Pts","Tg","Mj","Tp","Dt",null,"Classement POULE C",null,"Pts","Tg","Mj","Tp","Dt",null,"Classement POULE D",null,"Pts","Tg","Mj","Tp","Dt"]
[{"$f":"classementPoule(B25,2)","v":1},"ANGERS",{"$f":"CalculerNombrePoints(B25,2)","v":4},{"$f":"CalculerNombreTrouGagne(B25,2)","v":88},{"$f":"CalculerNombreMatchs(B25,2)","v":2},{"$f":"CalculerNombreTrouPerdu(B25,2)","v":33},{"$f":"D25-F25","v":55},null,{"$f":"classementPoule(J25,10)","v":1},"ALENCON",{"$f":"CalculerNombrePoints(J25,10)","v":6},{"$f":"CalculerNombreTrouGagne(J25,10)","v":95},{"$f":"CalculerNombreMatchs(J25,10)","v":3},{"$f":"CalculerNombreTrouPerdu(J25,10)","v":76},{"$f":"L25-N25","v":19},null,{"$f":"classementPoule(R25,18)","v":1},"La BAULE",{"$f":"CalculerNombrePoints(R25,18)","v":7},{"$f":"CalculerNombreTrouGagne(R25,18)","v":117},{"$f":"CalculerNombreMatchs(R25,18)","v":4},{"$f":"CalculerNombreTrouPerdu(R25,18)","v":103},{"$f":"T25-V25","v":14},null,{"$f":"classementPoule(Z25,26)","v":1},"NANTES Erdre",{"$f":"CalculerNombrePoints(Z25,26)","v":6},{"$f":"CalculerNombreTrouGagne(Z25,26)","v":95},{"$f":"CalculerNombreMatchs(Z25,26)","v":3},{"$f":"CalculerNombreTrouPerdu(Z25,26)","v":53},{"$f":"AB25-AD25","v":42}]
[{"$f":"classementPoule(B26,2)","v":1},"ANGERS PERRIERE",{"$f":"CalculerNombrePoints(B26,2)","v":4},{"$f":"CalculerNombreTrouGagne(B26,2)","v":62},{"$f":"CalculerNombreMatchs(B26,2)","v":3},{"$f":"CalculerNombreTrouPerdu(B26,2)","v":99},{"$f":"D26-F26","v":-37},null,{"$f":"classementPoule(J26,10)","v":2},"Le MANS 24H",{"$f":"CalculerNombrePoints(J26,10)","v":5},{"$f":"CalculerNombreTrouGagne(J26,10)","v":105},{"$f":"CalculerNombreMatchs(J26,10)","v":3},{"$f":"CalculerNombreTrouPerdu(J26,10)","v":65},{"$f":"L26-N26","v":40},null,{"$f":"classementPoule(R26,18)","v":2},"GUERANDE",{"$f":"CalculerNombrePoints(R26,18)","v":6},{"$f":"CalculerNombreTrouGagne(R26,18)","v":102},{"$f":"CalculerNombreMatchs(R26,18)","v":3},{"$f":"CalculerNombreTrouPerdu(R26,18)","v":62},{"$f":"T26-V26","v":40},null,{"$f":"classementPoule(Z26,26)","v":2},"NANTES Vigneux",{"$f":"CalculerNombrePoints(Z26,26)","v":5},{"$f":"CalculerNombreTrouGagne(Z26,26)","v":84},{"$f":"CalculerNombreMatchs(Z26,26)","v":3},{"$f":"CalculerNombreTrouPerdu(Z26,26)","v":68},{"$f":"AB26-AD26","v":16}]
[{"$f":"classementPoule(B27,2)","v":1},"BAUGE",{"$f":"CalculerNombrePoints(B27,2)","v":4},{"$f":"CalculerNombreTrouGagne(B27,2)","v":55},{"$f":"CalculerNombreMatchs(B27,2)","v":2},53,2,null,3,"ANJOU",{"$f":"CalculerNombrePoints(J27,10)","v":4},{"$f":"CalculerNombreTrouGagne(J27,10)","v":63},{"$f":"CalculerNombreMatchs(J27,10)","v":3},101,-38,null,3,"St SEBASTIEN",{"$f":"CalculerNombrePoints(R27,18)","v":4},{"$f":"CalculerNombreTrouGagne(R27,18)","v":80},{"$f":"CalculerNombreMatchs(R27,18)","v":3},76,4,null,3,"BOURGENAY",{"$f":"CalculerNombrePoints(Z27,26)","v":3},{"$f":"CalculerNombreTrouGagne(Z27,26)","v":57},{"$f":"CalculerNombreMatchs(Z27,26)","v":2},57,0]
[{"$f":"classementPoule(B28,2)","v":4},"ILE D'OR",{"$f":"CalculerNombrePoints(B28,2)","v":3},{"$f":"CalculerNombreTrouGagne(B28,2)","v":71},{"$f":"CalculerNombreMatchs(B28,2)","v":2},44,27,null,4,"LAVAL",{"$f":"CalculerNombrePoints(J28,10)","v":3},{"$f":"CalculerNombreTrouGagne(J28,10)","v":64},{"$f":"CalculerNombreMatchs(J28,10)","v":3},96,-32,null,3,"PORNIC",{"$f":"CalculerNombrePoints(R28,18)","v":4},{"$f":"CalculerNombreTrouGagne(R28,18)","v":68},{"$f":"CalculerNombreMatchs(R28,18)","v":3},75,-7,null,4,"OLONNES",{"$f":"CalculerNombrePoints(Z28,26)","v":2},{"$f":"CalculerNombreTrouGagne(Z28,26)","v":40},{"$f":"CalculerNombreMatchs(Z28,26)","v":2},73,-33]
[{"$f":"classementPoule(B29,2)","v":4},"CHOLET",{"$f":"CalculerNombrePoints(B29,2)","v":3},{"$f":"CalculerNombreTrouGagne(B29,2)","v":53},{"$f":"CalculerNombreMatchs(B29,2)","v":3},100,-47,null,4,"SARGE",{"$f":"CalculerNombrePoints(J29,10)","v":3},{"$f":"CalculerNombreTrouGagne(J29,10)","v":55},{"$f":"CalculerNombreMatchs(J29,10)","v":2},44,11,null,5,"St JEAN de MONTS",{"$f":"CalculerNombrePoints(R29,18)","v":3},{"$f":"CalculerNombreTrouGagne(R29,18)","v":59},{"$f":"CalculerNombreMatchs(R29,18)","v":3},110,-51,null,4,"PAYS de St GILLES",{"$f":"CalculerNombrePoints(Z29,26)","v":2},{"$f":"CalculerNombreTrouGagne(Z29,26)","v":39},{"$f":"CalculerNombreMatchs(Z29,26)","v":2},64,-25]
[]
[]
[]
["QUART-DE-FINALE",null,null,null,null,null,null,null,"BARAGES MAINTIEN (Terrain Neutre)",null,null,null,null,null,null,null,"DEMI-FINALE (Terrain Neutre)",null,null,null,null,null,null,null,"FINALE (Terrain Neutre)"]
[]
["1/4 Finales",null,"Scores",null,null,"Play-off",null,null,"Barrages",null,"Scores",null,null,"Play-off",null,null,"1/2 Finales",null,"Scores",null,null,"Play-off",null,null,"Finale",null,"Scores"]
["2025-02-02","1er Poule A",null,null,"2ème Poule B",null,null,null,"2025-02-02","5éme Poule A",null,null,"5éme Poule B",null,null,null,"2025-03-02",null,null,null,null,null,null,null,"2025-03-16"]
["2025-02-02","1er Poule B",null,null,"2ème Poule A",null,null,null,"2025-02-02","5ème Poule C",null,null,"5éme Poule D",null,null,null,"2025-03-02"]
["2025-02-02","1er Poule C",null,null,"2ème Poule D"]
["2025-02-02","1er Poule D",null,null,"2ème Poule C"]
[]
[]
[]
[null,null,null,null,null,null,null,null,null,null,null,null,null,null,null,null,null,null,null,null,null,null,null,null,null,null,null,null," "]

{"sheet":"FMJ1","index":1,"n_rows":1,"n_cols":7,"rows_kept":1,"cut":false,"hidden":false,"merged":[[0,6,1,6]]}
[null,null,null,null,null,null,"Retour au classement"]

{"sheet":"FMJ2","index":2,"n_rows":1,"n_cols":7,"rows_kept":1,"cut":false,"hidden":false,"merged":[[0,6,1,6]]}
[null,null,null,null,null,null,"Retour au classement"]

{"sheet":"FMJ3","index":3,"n_rows":1,"n_cols":7,"rows_kept":1,"cut":false,"hidden":false,"merged":[[0,6,1,6]]}
[null,null,null,null,null,null,"Retour au classement"]

{"sheet":"FMJ4","index":4,"n_rows":31,"n_cols":7,"rows_kept":31,"cut":false,"hidden":false,"merged":[[0,6,1,6]]}
[null,null,null,null,null,null,"Retour au classement"]
[]
[]
[]
[]
[]
[]
[]
[]
[]
[]
[]
[]
[]
[]
[]
[]
[]
[]
[]
[]
[]
[]
[]
[]
[]
[]
[]
[]
[]
[null,null,null,null," "]

{"sheet":"FMJ5","index":5,"n_rows":1,"n_cols":7,"rows_kept":1,"cut":false,"hidden":false,"merged":[[0,6,1,6]]}
[null,null,null,null,null,null,"Retour au classement"]

{"sheet":"Quart-Finale","index":6,"n_rows":1,"n_cols":7,"rows_kept":1,"cut":false,"hidden":false,"merged":[[0,6,1,6]]}
[null,null,null,null,null,null,"Retour au classement"]

{"sheet":"Demi-Finale","index":7,"n_rows":1,"n_cols":7,"rows_kept":1,"cut":false,"hidden":false,"merged":[[0,6,1,6]]}
[null,null,null,null,null,null,"Retour au classement"]

{"sheet":"Finale","index":8,"n_rows":1,"n_cols":7,"rows_kept":1,"cut":false,"hidden":false,"merged":[[0,6,1,6]]}
[null,null,null,null,null,null,"Retour au classement"]

{"sheet":"Barrages","index":9,"n_rows":1,"n_cols":7,"rows_kept":1,"cut":false,"hidden":false,"merged":[[0,6,1,6]]}
[null,null,null,null,null,null,"Retour au classement"]